fUSD/lending_fUSD_20260308
["ID","MTS","AMOUNT","RATE_DAILY","PERIOD"]
[407989324,1772977839367,-2901.329,0.0001948,2]
[407989325,1772977839376,-162.785,0.0001948,2]
[407989326,1772977839387,-283.42565755,0.0001949,2]
[407989327,1772977839398,-2235.05,0.0001949,2]
[407989328,1772977839407,-151.0,0.00019494,2]
[407989329,1772977839417,-961.58486559,0.00019494,2]
[407989330,1772977839427,-2853.88,0.00019494,2]
[407989331,1772977839437,-3888.77,0.00019494,2]
[407989332,1772977839446,-151.0,0.00019497,2]
[407989333,1772977839455,-500.0,0.00019499,2]
[407989334,1772977839465,-500.0,0.00019499,2]
[407989335,1772977839474,-500.0,0.00019499,2]
[407989336,1772977839483,-500.0,0.00019499,2]
[407989337,1772977839492,-500.0,0.00019499,2]
[407989338,1772977839501,-500.0,0.00019499,2]
[407989339,1772977839510,-500.0,0.00019499,2]
[407989340,1772977839519,-500.0,0.00019499,2]
[407989341,1772977839528,-500.0,0.00019499,2]
[407989342,1772977839537,-2500000.0,0.000195,2]
[407989343,1772977839546,-442.33478263,0.000195,2]
[407989344,1772977839555,-444.4893703,0.000195,2]
[407989345,1772977839564,-2000.0,0.000195,2]
[407989346,1772977839573,-4842.42372182,0.00019526,2]
[407989347,1772977839582,-1481.23780761,0.00019547,2]
[407989348,1772977839592,-181.08010149,0.00019547,2]
[407989349,1772977839601,-300.0,0.00019547,2]
[407989350,1772977839610,-272.62944185,0.00019547,2]
[407989351,1772977839619,-151.0,0.00019549,2]
[407989352,1772977839630,-997.16350561,0.00019549,2]
[407989353,1772977839639,-201.0,0.00019555,2]
[407989354,1772977839648,-2000.0,0.00019557,2]
[407989355,1772977839657,-201.0,0.00019564,2]
[407989356,1772977839666,-7389.38346263,0.00019566,2]
[407989357,1772977839676,-4842.42372182,0.00019588,2]
[407989358,1772977839685,-1130.21153596,0.000196,2]
[407989359,1772977839693,-1063.09624284,0.000196,2]
[407989360,1772977839702,-1060.65286488,0.000196,2]
[407989361,1772977839711,-1032.92117625,0.000196,2]
[407989362,1772977839721,-1061.0966305,0.000196,2]
[407989363,1772977839730,-1143.46035234,0.000196,2]
[407989364,1772977839739,-1097.30812533,0.000196,2]
[407989365,1772977839748,-1087.47397865,0.000196,2]
[407989366,1772977839757,-1106.34381898,0.000196,2]
[407989367,1772977839767,-1024.85279611,0.000196,2]
[407989368,1772977839776,-1050.26380688,0.000196,2]
[407989369,1772977839785,-1055.16058599,0.000196,2]
[407989370,1772977839794,-1028.8426613,0.000196,2]
[407989371,1772977839803,-1056.28544037,0.000196,2]
[407989372,1772977839812,-1042.81101567,0.000196,2]
[407989373,1772977839821,-1126.29533685,0.000196,2]
[407989374,1772977839830,-1025.86841298,0.000196,2]
[407989375,1772977839839,-1065.49293829,0.000196,2]
[407989376,1772977839849,-1032.6371085,0.000196,2]
[407989377,1772977839858,-1102.84652964,0.000196,2]
[407989378,1772977839870,-1056.76307448,0.000196,2]
[407989379,1772977839879,-1023.79157415,0.000196,2]
[407989380,1772977839888,-1063.02263607,0.000196,2]
[407989381,1772977839897,-1093.01361444,0.000196,2]
[407989382,1772977839910,-1561.75789442,0.000196,2]
[407989383,1772977839920,-1224.02057257,0.000196,2]
[407989384,1772977839929,-444.4893703,0.000196,2]
[407989385,1772977839941,-2000.0,0.000196,2]
[407989386,1772977839951,-151.0,0.00019604,2]
[407989387,1772977839960,-2002.42,0.00019635,2]
[407989388,1772977839969,-150.84630987,0.0001965,2]
[407989389,1772977839979,-4504.68700613,0.0001965,2]
[407989390,1772977839988,-4842.42372182,0.00019651,2]
[407989391,1772977839997,-151.0,0.00019659,2]
[407989392,1772977840006,-7389.38346263,0.00019678,2]
[407989393,1772977840015,-1212.3705941,0.000197,2]
[407989394,1772977840025,-444.4893703,0.000197,2]
[407989395,1772977840034,-2000.0,0.000197,2]
[407989396,1772977840044,-923.07,0.00019711,2]
[407989397,1772977840053,-4842.42372182,0.00019713,2]
[407989398,1772977840062,-151.0,0.00019714,2]
[407989399,1772977840072,-166.66,0.00019765,2]
[407989400,1772977840081,-151.0,0.00019769,2]
[407989401,1772977840090,-4842.42372182,0.00019775,2]
[407989402,1772977840100,-7389.38346263,0.00019789,2]
[407989403,1772977840109,-10000.0,0.000198,2]
[407989404,1772977840119,-555.55555,0.000198,2]
[407989405,1772977840128,-555.55556,0.000198,2]
[407989406,1772977840138,-444.4893703,0.000198,2]
[407989407,1772977840147,-2000.0,0.000198,2]
[407989408,1772977840157,-1541.03721467,0.000198,2]
[407989409,1772977840166,-151.0,0.00019824,2]
[407989410,1772977840176,-4842.42372182,0.00019838,2]
[407989411,1772977840185,-150.0,0.00019873,2]
[407989412,1772977840196,-151.0,0.00019879,2]
[407989413,1772977840205,-10000.0,0.00019897,2]
[407989414,1772977840215,-32923.6528,0.000199,2]
[407989415,1772977840224,-500.0,0.000199,2]
[407989416,1772977840233,-500.0,0.000199,2]
[407989417,1772977840243,-500.0,0.000199,2]
[407989418,1772977840252,-500.0,0.000199,2]
[407989419,1772977840261,-2000.0,0.000199,2]
[407989420,1772977840271,-500.0,0.000199,2]
[407989422,1772977840280,-500.0,0.000199,2]
[407989423,1772977840289,-500.0,0.000199,2]
[407989424,1772977840298,-500.0,0.000199,2]
[407989425,1772977840307,-500.0,0.000199,2]
[407989426,1772977840316,-500.0,0.000199,2]
[407989427,1772977840325,-500.0,0.000199,2]
[407989428,1772977840335,-333.18627222,0.000199,2]
[407989429,1772977840344,-1000.0,0.000199,2]
[407989430,1772977840353,-929.0793,0.000199,2]
[407989431,1772977840363,-2000.0,0.000199,2]
[407989432,1772977840374,-2000.0,0.000199,2]
[407989433,1772977840385,-2000.0,0.000199,2]
[407989434,1772977840394,-2000.0,0.000199,2]
[407989435,1772977840405,-2000.0,0.000199,2]
[407989436,1772977840414,-2000.0,0.000199,2]
[407989437,1772977840424,-2000.0,0.000199,2]
[407989438,1772977840434,-2000.0,0.000199,2]
[407989439,1772977840443,-2000.0,0.000199,2]
[407989440,1772977840453,-2000.0,0.000199,2]
[407989441,1772977840462,-150.84630987,0.000199,2]
[407989442,1772977840471,-7389.38346263,0.000199,2]
[407989443,1772977840625,-4842.42372182,0.000199,2]
[407989444,1772977840634,-4504.68700613,0.000199,2]
[407989445,1772977840644,-444.4893703,0.000199,2]
[407989446,1772977840653,-6567.0,0.000199,2]
[407989447,1772977840662,-1000.0,0.00019921,2]
[407989448,1772977840673,-150.0,0.00019955,2]
[407989449,1772977840682,-150.0,0.00019979,2]
[407989450,1772977840691,-283.42565755,0.00019987,2]
[407989451,1772977840702,-283.42565755,0.0001999,2]
[407989452,1772977840712,-151.0,0.00019994,2]
[407989453,1772977840721,-3360.4898621,0.00019997,2]
[407989454,1772977840730,-350212.38495684,0.00019997,2]
[407989455,1772977841350,-1059.18917361,0.00019997,2]
[407989456,1772977841474,-369.0,0.00019997,2]
[407989457,1772977841486,-561542.44909085,0.00019997,2]
[407989458,1772977841496,-21282.1624713,0.00019997,2]
[407989459,1772977841505,-214101.907565,0.00019997,2]
[407989460,1772977841514,-11783.9555189,0.00019997,2]
[407989461,1772977841523,-23477.2044539,0.00019997,2]
[407989462,1772977841533,-24240.7982341,0.00019997,2]
[407989463,1772977841542,-4614.4511177,0.00019997,2]
[407989464,1772977841551,-151.0,0.00019997,2]
[407989465,1772977841560,-31320.2112455,0.00019997,2]
[407989466,1772977841570,-62640.4224908,0.00019997,2]
[407989467,1772977841579,-300.0,0.00019999,2]
[407989468,1772977841588,-300.0,0.00019999,2]
[407989469,1772977841598,-666.0,0.00019999,2]
[407989470,1772977841607,-150.0,0.00019999,2]
[407989471,1772977841616,-215.40583698,0.00019999,2]
[407989472,1772977841627,-444.81947895,0.00019999,2]
[407989473,1772977841636,-500.0,0.00019999,2]
[407989474,1772977841646,-633.09983908,0.00019999,2]
[407989475,1772977841655,-162.46726597,0.00019999,2]
[407989476,1772977841665,-6360.0,0.0002,2]
[407989477,1772977841674,-735449.40225479,0.0002,2]
[407989478,1772977841684,-150.0,0.0002,2]
[407989479,1772977841693,-8648.47029816,0.0002,2]
[407989480,1772977841703,-150.0,0.0002,2]
[407989481,1772977841712,-22135.55454048,0.0002,2]
[407989482,1772977841722,-150.0,0.0002,2]
[407989483,1772977841732,-2944.90215886,0.0002,2]
[407989484,1772977841741,-267.164602,0.0002,2]
[407989485,1772977841750,-2000.0,0.0002,2]
[407989486,1772977841760,-2000.0,0.0002,2]
[407989487,1772977841769,-2702377.08554571,0.0002,2]
[407989488,1772977841808,-210.01395276,0.00019999,2]
[407989489,1772977841817,-520.99198351,0.00019999,2]
[407989490,1772977841827,-32291.52557074,0.0002,2]
[407989501,1772977845647,-500.0,0.00017311,2]
[407989502,1772977845658,-500.0,0.00017311,2]
[407989503,1772977845669,-500.0,0.00017311,2]
[407989504,1772977845679,-481.88473631,0.00017311,2]
[407989505,1772977845690,-500.0,0.00017311,2]
[407989506,1772977845699,-500.0,0.00017311,2]
[407989507,1772977845709,-500.0,0.00017311,2]
[407989508,1772977845719,-500.0,0.00017311,2]
[407989509,1772977845730,-199.07111286,0.00017311,2]
[407989510,1772977845741,-500.0,0.00017311,2]
[407989511,1772977845752,-100.95078328,0.00017311,2]
[407989518,1772978240817,559.15,7.646e-05,2]
[407989519,1772978241023,559.15,8.048e-05,2]
[407989520,1772978241228,559.15,8.45e-05,2]
[407989521,1772978241437,559.15,8.853e-05,2]
[407989522,1772978241644,559.15,9.255e-05,2]
[407989523,1772978241832,559.15,9.657e-05,2]
[407989524,1772978242130,559.15,0.0001006,2]
[407989525,1772978242340,559.15,0.00010462,2]
[407989526,1772978242555,559.15,0.00010865,2]
[407989527,1772978242779,559.15,0.00011267,2]
[407989532,1772978488276,-245.0,0.00011669,2]
[407989533,1772978488298,-314.15,0.00011669,2]
[407989534,1772978488987,-245.0,0.00011669,2]
[407989535,1772978489013,-314.15,0.00011871,2]
[407989536,1772978489824,-559.15,0.00011871,2]
[407989537,1772978490559,-104.16197326,0.00011871,2]
[407989538,1772978490579,-300.0,0.00011871,2]
[407989539,1772978490600,-154.98802674,0.00012072,2]
[407989540,1772978491295,-404.16197326,0.00012072,2]
[407989541,1772978539367,154.98802674,8e-05,2]
[407989542,1772978539405,345.01197326,8e-05,2]
[407989543,1772978539831,214.13802674,8e-05,2]
[407989544,1772978539866,443.66567348,8e-05,2]
[407989564,1772979031824,-987.513373,0.00012412,2]
[407989565,1772979031835,-252.0,0.00012412,2]
[407989566,1772979031844,-559.15,0.00012474,2]
[407989567,1772979031855,-150.0,0.00012474,14]
[407989568,1772979031865,-559.15,0.00012877,2]
[407989569,1772979031874,-115.07969683,0.00013232,2]
[407989570,1772979031885,-39.81766817,0.00013232,2]
[407989571,1772979031895,-514.51605835,0.00013279,2]
[407989572,1772979031907,-44.63394165,0.00013279,2]
[407989573,1772979031916,-166.66,0.00013416,2]
[407989574,1772979031926,-1200.0,0.00013652,2]
[407989575,1772979031936,-559.15,0.00013681,2]
[407989577,1772979031946,-166.66,0.00013698,2]
[407989579,1772979031956,-300.0,0.00013732,2]
[407989581,1772979031965,-1852.42,0.00013733,2]
[407989583,1772979031974,-3440.6,0.00013819,2]
[407989585,1772979031983,-184.12,0.00013928,2]
[407989587,1772979031993,-131.3013246,0.0001393,2]
[407989593,1772979032032,-18.6986754,0.0001393,2]
[407989594,1772979032041,-2335.72850977,0.00013931,2]
[407989597,1772979032052,-687.0,0.00013931,2]
[407989599,1772979032063,-3477.90574294,0.00013931,2]
[407989601,1772979032073,-6127.228,0.00013931,2]
[407989603,1772979032084,-7387.33125847,0.00013931,2]
[407989605,1772979032096,-2815.94946393,0.00013931,2]
[407989608,1772979032114,-47732.45966888,0.00013931,2]
[407989610,1772979032125,-2631.43609611,0.00013931,2]
[407989612,1772979032136,-6306.45422875,0.00013931,2]
[407989648,1772979038004,-63260.93703115,0.00013931,2]
[407989649,1772979038014,-500.0,0.00013973,2]
[407989650,1772979038023,-166.66,0.00013981,2]
[407989651,1772979038033,-156.93,0.00014,2]
[407989652,1772979038042,-559.15,0.00014084,2]
[407989653,1772979038051,-150.0,0.00014135,2]
[407989654,1772979038060,-166.66,0.00014263,2]
[407989655,1772979038069,-257.94,0.00014276,2]
[407989656,1772979038078,-10372.41348578,0.0001439,2]
[407989657,1772979038087,-559.15,0.00014486,2]
[407989658,1772979038096,-156.93,0.0001452,2]
[407989659,1772979038105,-1000.0,0.00014521,2]
[407989660,1772979038114,-166.66,0.00014546,2]
[407989662,1772979038124,-257.94,0.00014633,2]
[407989663,1772979038133,-184.12,0.00014702,2]
[407989664,1772979038142,-166.66,0.00014828,2]
[407989665,1772979038151,-559.15,0.00014888,2]
[407989666,1772979038159,-257.94,0.0001499,2]
[407989667,1772979038168,-7921.02007202,0.00015,2]
[407989668,1772979038177,-200.0,0.00015,2]
[407989670,1772979038187,-157.8,0.00015,2]
[407989672,1772979038196,-250.0,0.00015,2]
[407989674,1772979038205,-500.0,0.00015,30]
[407989675,1772979038214,-500.0,0.00015,30]
[407989676,1772979038225,-1680.0,0.00015017,2]
[407989677,1772979038234,-156.93,0.0001504,2]
[407989679,1772979038243,-255.0,0.00015045,2]
[407989680,1772979038251,-420.0,0.00015049,2]
[407989681,1772979038260,-1000.0,0.00015068,2]
[407989682,1772979038270,-559.15,0.00015291,2]
[407989683,1772979038279,-225.17,0.00015337,2]
[407989684,1772979038289,-257.94,0.00015346,2]
[407989685,1772979038300,-903.99,0.00015471,2]
[407989686,1772979038311,-1992.09,0.00015471,2]
[407989687,1772979038321,-184.12,0.00015476,2]
[407989688,1772979038331,-156.93,0.0001556,2]
[407989689,1772979038341,-257.94,0.00015703,2]
[407989690,1772979038351,-5332.76630897,0.00015855,2]
[407989691,1772979038360,-6065.47989773,0.00015873,2]
[407989692,1772979038373,-1254.30761178,0.000159,2]
[407989693,1772979038383,-151.0,0.00015939,2]
[407989694,1772979038393,-151.0,0.00015939,2]
[407989695,1772979038403,-151.0,0.00015939,2]
[407989696,1772979038413,-151.0,0.00015939,2]
[407989697,1772979038424,-151.0,0.00015939,2]
[407989698,1772979038433,-233.2149191,0.00015939,2]
[407989699,1772979038443,-500.0,0.00015948,2]
[407989700,1772979038452,-500.0,0.00015948,2]
[407989701,1772979038461,-500.0,0.00015948,2]
[407989702,1772979038471,-500.0,0.00015948,2]
[407989703,1772979038480,-500.0,0.00015948,2]
[407989704,1772979038489,-500.0,0.00015948,2]
[407989705,1772979038499,-500.0,0.00015948,2]
[407989706,1772979038508,-500.0,0.00015948,2]
[407989707,1772979038517,-500.0,0.00015948,2]
[407989708,1772979038526,-500.0,0.00015948,2]
[407989709,1772979038536,-500.0,0.00015948,2]
[407989710,1772979038545,-500.0,0.00015948,2]
[407989711,1772979038554,-500.0,0.00015948,2]
[407989712,1772979038563,-500.0,0.00015948,2]
[407989713,1772979038573,-500.0,0.00015948,2]
[407989714,1772979038582,-500.0,0.00015973,2]
[407989715,1772979038592,-200.0,0.00016,3]
[407989716,1772979038601,-166.66,0.00016076,2]
[407989717,1772979038610,-156.93,0.0001608,2]
[407989718,1772979038622,-5000.00919491,0.000162,5]
[407989719,1772979038631,-433.0,0.00016243,2]
[407989720,1772979038641,-184.12,0.00016249,2]
[407989721,1772979038651,-5332.76630895,0.00016304,2]
[407989722,1772979038660,-6065.4798977,0.0001632,2]
[407989723,1772979038669,-250.0,0.000164,2]
[407989724,1772979038679,-381.81,0.00016438,3]
[407989725,1772979038687,-200.0,0.00016438,2]
[407989726,1772979038701,-1254.30761171,0.00016471,2]
[407989727,1772979038710,-587.0,0.00016491,2]
[407989728,1772979038719,-2351.0,0.00016519,2]
[407989729,1772979038728,-156.93,0.000166,2]
[407989730,1772979038737,-166.66,0.00016607,2]
[407989731,1772979038747,-5332.76630895,0.00016754,2]
[407989732,1772979038757,-1500.0,0.00016768,2]
[407989733,1772979038766,-6065.4798977,0.00016768,2]
[407989734,1772979038775,-200.0,0.00016772,2]
[407989735,1772979038784,-4000.0,0.000169,6]
[407989736,1772979038793,-500.0,0.00016973,2]
[407989737,1772979038802,-294796.83404437,0.00017,2]
[407989738,1772979038811,-152.13919626,0.00017,2]
[407989739,1772979038820,-505.0,0.00017,2]
[407989740,1772979038829,-487.0,0.00017,2]
[407989741,1772979038838,-487.0,0.00017,2]
[407989742,1772979038846,-487.0,0.00017,2]
[407989743,1772979038855,-487.0,0.00017,2]
[407989744,1772979038865,-487.0,0.00017,2]
[407989745,1772979038875,-487.0,0.00017,2]
[407989746,1772979038884,-487.0,0.00017,2]
[407989747,1772979038894,-487.0,0.00017,2]
[407989748,1772979038903,-487.0,0.00017,2]
[407989749,1772979038912,-487.0,0.00017,2]
[407989750,1772979038921,-487.0,0.00017,2]
[407989751,1772979038930,-487.0,0.00017,2]
[407989752,1772979038943,-487.0,0.00017,2]
[407989753,1772979038952,-487.0,0.00017,2]
[407989754,1772979038961,-487.0,0.00017,2]
[407989755,1772979038970,-487.0,0.00017,2]
[407989756,1772979038980,-487.0,0.00017,2]
[407989757,1772979038988,-487.0,0.00017,2]
[407989758,1772979038997,-487.0,0.00017,2]
[407989759,1772979039006,-487.0,0.00017,2]
[407989760,1772979039015,-487.0,0.00017,2]
[407989761,1772979039024,-487.69,0.00017,2]
[407989762,1772979039033,-487.0,0.00017,2]
[407989763,1772979039042,-487.0,0.00017,2]
[407989764,1772979039050,-487.0,0.00017,2]
[407989765,1772979039059,-487.0,0.00017,2]
[407989766,1772979039068,-487.0,0.00017,2]
[407989767,1772979039078,-487.0,0.00017,2]
[407989768,1772979039087,-487.0,0.00017,2]
[407989769,1772979039096,-487.0,0.00017,2]
[407989770,1772979039105,-487.0,0.00017,2]
[407989771,1772979039116,-487.0,0.00017,2]
[407989772,1772979039125,-487.0,0.00017,2]
[407989773,1772979039135,-487.0,0.00017,2]
[407989774,1772979039144,-487.0,0.00017,2]
[407989775,1772979039153,-487.0,0.00017,2]
[407989776,1772979039162,-487.0,0.00017,2]
[407989777,1772979039171,-487.0,0.00017,2]
[407989778,1772979039181,-487.0,0.00017,2]
[407989779,1772979039190,-487.0,0.00017,2]
[407989780,1772979039199,-487.0,0.00017,2]
[407989781,1772979039208,-487.0,0.00017,2]
[407989782,1772979039218,-891.54,0.00017,2]
[407989783,1772979039231,-184.12,0.00017023,2]
[407989784,1772979039240,-1254.30761171,0.00017043,2]
[407989785,1772979039249,-23364.92296281,0.000171,2]
[407989786,1772979039258,-53547.69933188,0.0001711,2]
[407989787,1772979039269,-156.93,0.0001712,2]
[407989788,1772979039278,-166.66,0.00017137,2]
[407989789,1772979039288,-200.0,0.00017185,2]
[407989790,1772979039298,-5332.76630895,0.00017203,2]
[407989791,1772979039307,-6065.4798977,0.00017215,2]
[407989792,1772979039316,-153.0,0.00017311,3]
[407989793,1772979039325,-150.0,0.00017489,2]
[407989794,1772979039338,-719.58548492,0.00017521,2]
[407989795,1772979039347,-736.0,0.00017552,2]
[407989796,1772979039356,-1254.30761171,0.00017614,2]
[407989797,1772979039365,-156.93,0.0001764,2]
[407989798,1772979039375,-1642.14217866,0.00017653,2]
[407989802,1772979040250,-627.9016009,0.00017653,2]
[407989803,1772979040262,-3062.72252939,0.00017653,2]
[407989804,1772979040271,-6065.4798977,0.00017663,2]
[407989805,1772979040280,-166.66,0.00017668,2]
[407989806,1772979040289,-200.0,0.00017697,2]
[407989807,1772979040300,-403.0,0.000177,5]
[407989808,1772979040310,-7035.84,0.00017728,2]
[407989809,1772979040319,-150.99,0.00017728,2]
[407989810,1772979040329,-299.99,0.00017728,4]
[407989811,1772979040338,-9999.99,0.00017728,2]
[407989812,1772979040347,-184.12,0.00017797,2]
[407989813,1772979040356,-150.84630988,0.000179,2]
[407989814,1772979040366,-8100.0,0.000179,6]
[407989815,1772979040376,-500.0,0.00017973,2]
[407989816,1772979040385,-7201.42441341,0.0001799,2]
[407989817,1772979040395,-6106.0,0.00018,2]
[407989818,1772979040405,-1860.05864562,0.00018,5]
[407989819,1772979040415,-3067.55173912,0.00018,7]
[407989820,1772979040424,-65594.12178865,0.00018,2]
[407989821,1772979040433,-200.0,0.00018,4]
[407989822,1772979040442,-308.71489889,0.00018,2]
[407989823,1772979040452,-1002.71298774,0.00018,2]
[407989824,1772979040461,-823.0,0.00018072,2]
[407989825,1772979040471,-5332.76630895,0.00018102,2]
[407989826,1772979040480,-6065.4798977,0.0001811,2]
[407989827,1772979040490,-156.93,0.0001816,2]
[407989828,1772979040499,-3292.0,0.0001817,2]
[407989829,1772979040508,-1254.30761171,0.00018186,2]
[407989830,1772979040518,-166.66,0.00018199,2]
[407989831,1772979040527,-200.0,0.00018331,2]
[407989832,1772979040537,-285.36,0.00018356,2]
[407989833,1772979040546,-150.84630987,0.000184,2]
[407989834,1772979040555,-1541.03721467,0.000184,2]
[407989835,1772979040564,-1000.0,0.00018521,2]
[407989836,1772979040574,-5332.76630895,0.00018552,2]
[407989837,1772979040583,-6065.4798977,0.00018558,2]
[407989838,1772979040592,-184.12,0.00018571,2]
[407989839,1772979040601,-156.93,0.0001868,2]
[407989840,1772979040610,-166.66,0.00018729,2]
[407989841,1772979040619,-160.0,0.00018755,2]
[407989842,1772979040628,-172.82949155,0.00018755,2]
[407989843,1772979040638,-1254.30761171,0.00018757,2]
[407989844,1772979040647,-261.77,0.0001881,2]
[407989845,1772979040656,-150.84630987,0.000189,2]
[407989846,1772979040666,-505.0,0.00018909,3]
[407989847,1772979040675,-1252.0,0.00018945,2]
[407989848,1772979040684,-500.0,0.00018999,2]
[407989849,1772979040693,-1428.38747117,0.00018999,2]
[407989850,1772979040702,-151.0,0.00018999,2]
[407989851,1772979040712,-693.3919763,0.00018999,2]
[407989852,1772979040721,-174.61919141,0.00018999,2]
[407989853,1772979040730,-300.0,0.00018999,2]
[407989854,1772979040739,-262.90206542,0.00018999,2]
[407989855,1772979040749,-500.0,0.00018999,2]
[407989856,1772979040758,-500.0,0.00018999,2]
[407989857,1772979040767,-500.0,0.00018999,2]
[407989858,1772979040776,-500.0,0.00018999,2]
[407989859,1772979040785,-500.0,0.00018999,2]
[407989860,1772979040794,-500.0,0.00018999,2]
[407989861,1772979040803,-500.0,0.00018999,2]
[407989862,1772979040812,-500.0,0.00018999,2]
[407989863,1772979040821,-500.0,0.00018999,2]
[407989864,1772979040830,-500.0,0.00018999,2]
[407989865,1772979040839,-500.0,0.00018999,2]
[407989866,1772979040848,-1436.70614573,0.00019,2]
[407989867,1772979040858,-301.40781056,0.00019,5]
[407989868,1772979040867,-500.0,0.00019,2]
[407989869,1772979040876,-5332.76630895,0.00019001,2]
[407989870,1772979040886,-6065.4798977,0.00019005,2]
[407989871,1772979040895,-32923.6528,0.00019021,2]
[407989872,1772979040905,-1000.0,0.00019021,2]
[407989873,1772979040914,-151.0,0.00019054,2]
[407989874,1772979040923,-719.04747942,0.00019054,2]
[407989875,1772979040932,-1336.46733329,0.00019068,2]
[407989876,1772979040941,-12200.0,0.000191,6]
[407989877,1772979040951,-157.07,0.00019103,2]
[407989878,1772979040960,-151.0,0.00019109,2]
[407989879,1772979040969,-745.65223616,0.00019109,2]
[407989880,1772979040978,-200.0,0.00019117,2]
[407989881,1772979040987,-151.0,0.00019164,2]
[407989882,1772979040996,-773.2413689,0.00019164,2]
[407989883,1772979041005,-150.0,0.00019178,2]
[407989884,1772979041014,-2000.0,0.000192,2]
[407989885,1772979041024,-156.93,0.000192,2]
[407989886,1772979041033,-16300.0,0.000192,7]
[407989887,1772979041042,-350.0,0.00019206,2]
[407989888,1772979041051,-1213.0,0.00019207,2]
[407989889,1772979041060,-929.753,0.00019207,2]
[407989890,1772979041070,-5992.0,0.00019207,2]
[407989891,1772979041079,-414.0,0.00019207,2]
[407989892,1772979041088,-2464.837,0.00019207,2]
[407989893,1772979041097,-235.0,0.00019216,2]
[407989894,1772979041106,-151.0,0.00019219,2]
[407989895,1772979041115,-801.85129955,0.00019219,2]
[407989896,1772979041124,-235.0,0.00019256,2]
[407989897,1772979041133,-151.0,0.00019274,2]
[407989898,1772979041143,-831.51979763,0.00019274,2]
[407989899,1772979041152,-2000.0,0.000193,2]
[407989900,1772979041161,-2000.0,0.000193,2]
[407989901,1772979041171,-20400.0,0.000193,7]
[407989902,1772979041180,-1254.30761171,0.00019329,2]
[407989903,1772979041189,-151.0,0.00019329,2]
[407989904,1772979041198,-862.28603014,0.00019329,2]
[407989905,1772979041207,-500.0,0.0001933,2]
[407989906,1772979041216,-500.0,0.0001933,2]
[407989907,1772979041230,-500.0,0.0001933,2]
[407989908,1772979041239,-500.0,0.0001933,2]
[407989909,1772979041248,-929.0793,0.00019331,2]
[407989910,1772979041257,-184.12,0.00019344,2]
[407989911,1772979041268,-235.0,0.00019359,2]
[407989912,1772979041277,-151.0,0.00019384,2]
[407989913,1772979041286,-894.19061326,0.00019384,2]
[407989914,1772979041295,-2000.0,0.000194,2]
[407989915,1772979041306,-2000.0,0.000194,2]
[407989916,1772979041315,-150.84630987,0.000194,2]
[407989917,1772979041324,-4000.0,0.000194,7]
[407989918,1772979041334,-500.0,0.0001943,2]
[407989919,1772979041343,-235.0,0.00019438,2]
[407989920,1772979041353,-151.0,0.00019439,2]
[407989921,1772979041362,-927.27566595,0.00019439,2]
[407989922,1772979041374,-5332.76630895,0.00019451,2]
[407989923,1772979041383,-6065.4798977,0.00019453,2]
[407989924,1772979041393,-235.0,0.00019489,2]
[407989925,1772979041403,-151.0,0.00019494,2]
[407989926,1772979041413,-961.58486559,0.00019494,2]
[407989927,1772979041423,-350.0,0.00019494,2]